bitfinex/quotes_BTCUSD_20250204
["timestamp","ask_amount","ask_price","bid_price","bid_amount"]
[1738670764698,0.201626,99194.0,99178.0,0.25409775]
[1738670764699,0.151222,99192.0,99178.0,0.25409775]
[1738670764924,0.00707187,99187.0,99178.0,0.25609775]
[1738670765126,0.151225,99190.0,99178.0,0.10285675]
[1738670765358,0.03508647,99198.0,99178.0,0.10285675]
[1738670765577,0.00707247,99189.0,99178.0,0.25609875]
[1738670765786,0.03508647,99198.0,99179.0,0.151241]
[1738670765967,0.00707487,99197.0,99180.0,0.10238506]
[1738670766192,0.151221,99193.0,99180.0,0.10238506]
[1738670766374,0.00707457,99196.0,99180.0,0.10238506]
[1738670766571,0.151223,99191.0,99180.0,0.10238506]
[1738670766875,0.00707277,99190.0,99180.0,0.10238506]
[1738670767457,0.151227,99189.0,99180.0,0.10238506]
[1738670767625,0.00601616,99189.0,99180.0,0.10238506]
[1738670768070,0.151224,99191.0,99180.0,0.10238506]
[1738670768226,0.00601591,99188.0,99181.0,0.081]
[1738670768432,0.0060164,99190.0,99182.0,0.10238506]
[1738670768628,0.03508647,99198.0,99187.0,0.151227]
[1738670768833,0.03508647,99198.0,99190.0,0.0464]
[1738670769076,0.00601813,99197.0,99191.0,0.10238506]
[1738670769290,0.03508647,99198.0,99191.0,0.10238506]
[1738670769679,0.00735549,99197.0,99191.0,0.10238506]
[1738670770085,0.03508647,99198.0,99191.0,0.10238506]
[1738670770332,0.0001068,99198.0,99197.0,0.151214]
[1738670770452,0.0001068,99198.0,99197.0,0.33169906]
[1738670770852,0.15,99219.0,99197.0,0.18048506]
[1738670771100,0.15,99219.0,99204.0,0.201603]
[1738670771303,0.00725069,99218.0,99205.0,0.25358506]
[1738670771652,0.30118,99219.0,99205.0,0.10238506]
[1738670771837,0.15,99219.0,99205.0,0.10238506]
[1738670772037,0.15843269,99218.0,99205.0,0.10238506]
[1738670772233,0.00725069,99218.0,99205.0,0.10238506]
[1738670772532,0.00725069,99218.0,99205.0,0.10438506]
[1738670772756,0.00725069,99218.0,99205.0,0.25558606]
[1738670772937,0.00725069,99218.0,99206.0,0.1512]
[1738670773160,0.00725069,99218.0,99207.0,0.10238506]
[1738670773705,0.00725069,99218.0,99208.0,0.199696]
[1738670773898,0.00725069,99218.0,99209.0,0.10238506]
[1738670774103,0.301178,99221.0,99209.0,0.10238506]
[1738670774304,0.00725039,99217.0,99209.0,0.10238506]
[1738670774565,0.00725009,99216.0,99209.0,0.10238506]
[1738670774770,0.15,99221.0,99197.0,0.0781]
[1738670774771,0.13711688,99220.0,99197.0,0.1256]
[1738670775019,0.151195,99209.0,99208.0,0.002]
[1738670775371,0.15847782,99209.0,99208.0,0.002]
[1738670775576,0.151197,99208.0,99198.0,0.10238506]
[1738670775733,0.0072807,99207.0,99198.0,0.10238506]
[1738670775941,0.201586,99214.0,99198.0,0.10238506]
[1738670776143,0.0072825,99213.0,99198.0,0.10238506]
[1738670776393,0.0072825,99213.0,99199.0,0.281514]
[1738670776592,0.0072825,99213.0,99200.0,0.10238506]
[1738670776809,0.0351549,99217.0,99200.0,0.10238506]
[1738670777009,0.151185,99216.0,99203.0,0.151204]
[1738670777210,0.151186,99215.0,99204.0,0.10238506]
[1738670777410,0.151193,99211.0,99204.0,0.10238506]
[1738670777701,0.151195,99209.0,99208.0,0.002]
[1738670777910,0.151195,99209.0,99208.0,0.10238506]
[1738670778115,0.1584763,99209.0,99208.0,0.10238506]
[1738670778318,0.352794,99208.0,99203.0,0.002]
[1738670778469,0.151202,99205.0,99204.0,0.10238506]
[1738670778671,0.201597,99208.0,99204.0,0.10238506]
[1738670778672,0.0072807,99207.0,99204.0,0.10238506]
[1738670778874,0.0072804,99205.0,99204.0,0.10238506]
[1738670779410,0.03553154,99209.0,99197.0,0.0475]
[1738670779553,0.03553154,99209.0,99187.0,0.128]
[1738670779758,0.00728131,99208.0,99188.0,0.10238506]
[1738670779965,0.151199,99207.0,99188.0,0.10238506]
[1738670780170,0.151217,99195.0,99188.0,0.10238506]
[1738670780381,0.00727684,99194.0,99188.0,0.10238506]
[1738670780592,0.132215,99196.0,99188.0,0.10238506]
[1738670780794,0.00727654,99193.0,99188.0,0.10238506]
[1738670781224,0.151219,99194.0,99188.0,0.10238506]
[1738670781428,0.201631,99191.0,99188.0,0.10438506]
[1738670781769,0.151226,99189.0,99188.0,0.10238506]
[1738670781899,0.151226,99189.0,99188.0,0.10438506]
[1738670782101,0.15849704,99189.0,99188.0,0.10438506]
[1738670782445,0.00727104,99189.0,99188.0,0.10238506]
[1738670782649,0.00727104,99189.0,99188.0,0.10438506]
[1738670782913,0.151221,99193.0,99188.0,0.10438506]
[1738670783117,0.00725831,99189.0,99188.0,0.10438506]
[1738670783320,0.03457993,99194.0,99188.0,0.10438506]
[1738670783522,0.00725831,99189.0,99188.0,0.10438506]
[1738670783724,0.201626,99194.0,99188.0,0.10438506]
[1738670783933,0.02,99225.0,99188.0,0.25561206]
[1738670783934,0.0072585,99189.0,99188.0,0.25561206]
[1738670784162,0.15,99210.0,99188.0,0.10238506]
[1738670784163,0.201614,99199.0,99188.0,0.10238506]
[1738670784375,0.151215,99197.0,99188.0,0.10238506]
[1738670784626,0.0072614,99198.0,99188.0,0.10438506]
[1738670784877,0.0072608,99196.0,99188.0,0.10238506]
[1738670785113,0.151212,99199.0,99188.0,0.10260934]
[1738670785357,0.151212,99199.0,99188.0,0.10460934]
[1738670785592,0.15,99203.0,99188.0,0.10260934]
[1738670785795,0.201604,99204.0,99188.0,0.10260934]
[1738670785796,0.03557107,99206.0,99188.0,0.10260934]
[1738670786007,0.151218,99195.0,99188.0,0.10460934]
[1738670786584,0.00881887,99194.0,99188.0,0.10460934]
[1738670787335,0.00881887,99194.0,99191.0,0.151222]
[1738670787596,0.15122,99193.0,99192.0,0.10238506]
[1738670787944,0.00881778,99193.0,99192.0,0.10238506]
[1738670788547,0.151226,99189.0,99188.0,0.00022428]
[1738670789015,0.16004237,99189.0,99188.0,0.00022428]
[1738670789895,0.31004237,99189.0,99188.0,0.00022428]
[1738670790651,0.29104237,99189.0,99188.0,0.00022428]
[1738670790980,0.29104237,99189.0,99188.0,0.00222428]
[1738670791335,0.29104237,99189.0,99188.0,0.00022428]
[1738670791551,0.29104237,99189.0,99188.0,0.00222428]
[1738670794312,0.35153237,99189.0,99188.0,0.00222428]
[1738670794522,0.50395448,99189.0,99188.0,0.00222428]
[1738670794744,0.8554783,99189.0,99188.0,0.00222428]
[1738670795422,0.86197122,99189.0,99188.0,0.00022428]
[1738670795568,0.90897122,99189.0,99188.0,0.00022428]
[1738670795778,0.151241,99179.0,99178.0,0.00022428]
[1738670795979,0.442231,99179.0,99178.0,0.00069597]
[1738670796177,0.47400904,99179.0,99178.0,0.00069597]
[1738670796556,0.48062926,99179.0,99178.0,0.00069597]
[1738670797366,0.58301432,99179.0,99178.0,0.00069597]
[1738670798253,0.52252432,99179.0,99178.0,0.00069597]
[1738670798438,0.56772432,99179.0,99178.0,0.00069597]
[1738670798862,0.58649365,99179.0,99178.0,0.00069597]
[1738670799078,0.48410859,99179.0,99178.0,0.00069597]
[1738670800005,0.32878837,99179.0,99178.0,0.00069597]
[1738670800213,0.31001904,99179.0,99178.0,0.00069597]
[1738670802271,0.36846485,99179.0,99178.0,0.00069597]
[1738670802863,0.44706485,99179.0,99178.0,0.00069597]
[1738670803067,0.54944991,99179.0,99178.0,0.00069597]
[1738670803278,0.85211078,99179.0,99178.0,0.00069597]
[1738670803686,0.301272,99159.0,99140.0,0.0452]
[1738670803891,0.72931793,99159.0,99158.0,0.0003657]
[1738670804090,0.73838504,99159.0,99158.0,0.0003657]
[1738670804514,0.61299998,99159.0,99158.0,0.0003657]
[1738670805339,0.61292486,99159.0,99158.0,0.0023657]
[1738670805544,0.61292486,99159.0,99158.0,0.0033657]
[1738670805965,0.61292486,99159.0,99158.0,0.0023657]
[1738670806581,0.61392486,99159.0,99158.0,0.0023657]
[1738670806781,0.64887005,99159.0,99158.0,0.0023657]
[1738670806988,0.65087005,99159.0,99158.0,0.0023657]
[1738670809653,0.64987005,99159.0,99158.0,0.0023657]
[1738670810167,0.65087005,99159.0,99158.0,0.0023657]
[1738670810387,0.64887005,99159.0,99158.0,0.0003657]
[1738670810605,0.64787005,99159.0,99158.0,0.0003657]
[1738670810758,0.64887005,99159.0,99158.0,0.0003657]
[1738670810951,0.64787005,99159.0,99158.0,0.0003657]
[1738670811382,0.64887005,99159.0,99158.0,0.0003657]
[1738670812096,0.83474511,99159.0,99158.0,0.0003657]
[1738670812783,0.83574511,99159.0,99158.0,0.0003657]
[1738670813255,0.83474511,99159.0,99158.0,0.0003657]
[1738670813489,0.84254682,99159.0,99158.0,0.0003657]
[1738670813726,0.96514682,99159.0,99158.0,0.0003657]
[1738670813949,0.301295,99144.0,99128.0,0.0462]
[1738670814159,0.301295,99144.0,99143.0,0.00029545]
[1738670814411,0.31032703,99144.0,99143.0,0.00029545]
[1738670815490,0.6129879,99144.0,99143.0,0.00129545]
[1738670815721,0.5939879,99144.0,99143.0,0.00129545]
[1738670817041,0.65820281,99144.0,99143.0,0.00129545]
[1738670817261,0.77933405,99144.0,99143.0,0.00129545]
[1738670817924,0.91612405,99144.0,99143.0,0.00129545]
[1738670819944,0.94612279,99144.0,99143.0,0.00129545]
[1738670820164,0.94612279,99144.0,99143.0,0.00029545]
[1738670820660,0.70694773,99144.0,99143.0,0.00129545]
[1738670821067,0.70694773,99144.0,99143.0,0.00029545]
[1738670821068,0.68394773,99144.0,99143.0,0.00029545]
[1738670821308,0.68494773,99144.0,99143.0,0.00129545]
[1738670821522,0.68594773,99144.0,99143.0,0.00129545]
[1738670822065,0.53594773,99144.0,99143.0,0.05029545]
[1738670822273,0.40365273,99144.0,99143.0,0.12799545]
[1738670822483,0.40265273,99144.0,99143.0,0.12699545]
[1738670822683,0.55394773,99144.0,99143.0,0.12699545]
[1738670822891,0.50420281,99144.0,99143.0,0.12699545]
[1738670823378,0.05024694,99144.0,99143.0,0.12699545]
[1738670823590,0.00903203,99144.0,99143.0,0.12699545]
[1738670823795,0.01003203,99144.0,99143.0,0.12699545]
[1738670823969,0.001,99144.0,99143.0,0.12699545]
[1738670824172,0.01099298,99144.0,99143.0,0.12699545]
[1738670824383,0.001,99144.0,99143.0,0.12699545]
[1738670824735,0.151281,99153.0,99143.0,0.23038051]
[1738670824927,0.04143185,99152.0,99144.0,0.10238506]
[1738670825066,0.151268,99162.0,99151.0,0.151284]
[1738670825271,0.29156441,99167.0,99152.0,0.10238506]
[1738670825477,0.15127,99161.0,99152.0,0.10238506]
[1738670826243,0.151267,99163.0,99153.0,0.0783]
[1738670826423,0.151266,99163.0,99154.0,0.10238506]
[1738670826627,0.04102662,99163.0,99155.0,0.0465]
[1738670826846,0.15,99164.0,99155.0,0.0465]
[1738670826847,0.15,99164.0,99156.0,0.10238506]
[1738670827462,0.18999921,99164.0,99156.0,0.10238506]
[1738670827671,0.001,99159.0,99156.0,0.10238506]
[1738670827893,0.03999921,99164.0,99156.0,0.10238506]
[1738670828117,0.201688,99163.0,99155.0,0.0465]
[1738670828371,0.151276,99157.0,99156.0,0.001]
[1738670828619,0.151276,99156.0,99155.0,0.0465]
[1738670829107,0.151274,99158.0,99155.0,0.0465]
[1738670829341,0.151275,99157.0,99155.0,0.0465]
[1738670829588,0.151276,99156.0,99155.0,0.0465]
[1738670830043,0.201699,99158.0,99155.0,0.0465]
[1738670830516,0.151276,99157.0,99155.0,0.0465]
[1738670830731,0.151276,99156.0,99155.0,0.0465]
[1738670830959,0.132276,99156.0,99155.0,0.0465]
[1738670831190,0.132276,99156.0,99155.0,0.0475]
[1738670831417,0.132276,99156.0,99155.0,0.0465]
[1738670831883,0.132276,99156.0,99155.0,0.0475]
[1738670832110,0.132276,99156.0,99155.0,0.0465]
[1738670832581,0.04142122,99157.0,99155.0,0.0465]
[1738670833002,0.151275,99157.0,99155.0,0.0475]
[1738670833551,0.201689,99163.0,99155.0,0.0475]
[1738670833759,0.151276,99156.0,99155.0,0.0475]
[1738670833979,0.151276,99156.0,99155.0,0.001]
[1738670834198,0.151293,99145.0,99144.0,0.0798]
[1738670834429,0.151295,99144.0,99143.0,0.04999545]
[1738670834654,0.151295,99144.0,99143.0,0.00029545]
[1738670835814,0.132295,99144.0,99143.0,0.00129545]
[1738670836271,0.352978,99156.0,99143.0,0.10368051]
[1738670836492,0.13711688,99170.0,99144.0,0.10238506]
[1738670836493,0.15,99164.0,99144.0,0.10238506]
[1738670836712,0.04162176,99156.0,99144.0,0.10238506]
[1738670836942,0.151293,99145.0,99143.0,0.00129545]
[1738670837180,0.151295,99144.0,99143.0,0.00029545]
[1738670837461,0.15993822,99144.0,99143.0,0.00029545]
[1738670837699,0.15993822,99144.0,99143.0,0.00229545]
[1738670837932,0.15993822,99144.0,99143.0,0.00029545]
[1738670838159,0.15993822,99144.0,99143.0,0.00229545]
[1738670838434,0.15993822,99144.0,99143.0,0.00029545]
[1738670838866,0.15993822,99144.0,99143.0,0.00229545]
[1738670839084,0.15993822,99144.0,99143.0,0.00029545]
[1738670840547,0.15993822,99144.0,99143.0,0.00229545]
[1738670840752,0.14093822,99144.0,99143.0,0.00029545]
[1738670841008,0.14093822,99144.0,99143.0,0.00129545]
[1738670841254,0.18214709,99144.0,99143.0,0.00129545]
[1738670841476,0.00864322,99144.0,99143.0,0.10268051]
[1738670841754,0.00864322,99144.0,99143.0,0.10368051]
[1738670841947,0.30266087,99152.0,99143.0,0.10368051]
[1738670842185,0.04162223,99149.0,99144.0,0.10238506]
[1738670842389,0.30266087,99152.0,99144.0,0.10238506]
[1738670842390,0.00864683,99151.0,99144.0,0.10238506]
[1738670842571,0.00864567,99148.0,99144.0,0.10238506]
[1738670842777,0.30266087,99152.0,99144.0,0.10238506]
[1738670843008,0.00864528,99147.0,99144.0,0.10238506]
[1738670843190,0.49446517,99152.0,99144.0,0.10238506]
[1738670843425,0.00863669,99146.0,99144.0,0.10238506]
[1738670843609,0.34318217,99152.0,99144.0,0.10238506]
[1738670843845,0.0086363,99145.0,99144.0,0.10238506]
[1738670844039,0.151285,99151.0,99144.0,0.10238506]
[1738670844379,0.00863823,99150.0,99144.0,0.10438506]
[1738670844800,0.00863823,99150.0,99144.0,0.10238506]
[1738670844985,0.151284,99151.0,99144.0,0.10438506]
[1738670845196,0.00863785,99149.0,99144.0,0.10438506]
[1738670845408,0.00863823,99150.0,99144.0,0.10238506]
[1738670845604,0.03015876,99152.0,99144.0,0.10238506]
[1738670845964,0.151281,99154.0,99144.0,0.10238506]
[1738670846206,0.00802166,99151.0,99144.0,0.10238506]
[1738670846435,0.151283,99152.0,99144.0,0.10238506]
[1738670846664,0.00802127,99150.0,99144.0,0.10238506]
[1738670846893,0.15930666,99151.0,99144.0,0.10238506]
[1738670847098,0.00802089,99149.0,99144.0,0.10438506]
[1738670847252,0.00802089,99149.0,99144.0,0.10238506]
[1738670847455,0.151282,99152.0,99144.0,0.10438506]
[1738670848083,0.00802166,99151.0,99144.0,0.10438506]
[1738670848291,0.00802166,99151.0,99144.0,0.10238506]
[1738670848502,0.00802166,99151.0,99145.0,0.1249]
[1738670848717,0.0001069,99150.0,99146.0,0.10238506]
[1738670849786,0.0001069,99150.0,99147.0,0.151289]
[1738670850043,0.0001069,99150.0,99148.0,0.10238506]
[1738670850927,0.151275,99157.0,99148.0,0.10238506]
[1738670851151,0.151273,99158.0,99148.0,0.10238506]
[1738670851327,0.00802359,99156.0,99148.0,0.10238506]
[1738670851467,0.15929898,99157.0,99148.0,0.10238506]
[1738670851663,0.00802398,99157.0,99148.0,0.25367206]
[1738670851920,0.151271,99160.0,99148.0,0.10438506]
[1738670852233,0.00802359,99156.0,99148.0,0.10438506]
[1738670852410,0.151272,99159.0,99148.0,0.10438506]
[1738670852629,0.00802321,99155.0,99148.0,0.10438506]
[1738670852795,0.34377538,99165.0,99150.0,0.151285]
[1738670852998,0.00802282,99154.0,99152.0,0.151282]
[1738670853313,0.34377538,99165.0,99153.0,0.25538506]
[1738670853518,0.30266087,99178.0,99153.0,0.25538506]
[1738670853724,0.49416418,99178.0,99177.0,0.1528]
[1738670853929,0.64540718,99178.0,99177.0,0.1528]
[1738670854305,0.66425092,99178.0,99177.0,0.1528]
[1738670855165,0.64540718,99178.0,99177.0,0.1528]
[1738670856202,0.64540718,99178.0,99177.0,0.2351]
[1738670856203,0.04150331,99178.0,99177.0,0.2351]
[1738670856403,0.30266087,99187.0,99177.0,0.33748506]
[1738670856642,0.0001068,99189.0,99178.0,0.10238506]
[1738670856854,0.0004714,99185.0,99178.0,0.10238506]
[1738670857292,0.0004714,99185.0,99183.0,0.151234]
[1738670857497,0.0004714,99185.0,99184.0,0.14878506]
[1738670858728,0.0004714,99185.0,99184.0,0.22788506]
[1738670859359,0.0004714,99185.0,99184.0,0.37824965]
[1738670859849,0.0004714,99185.0,99184.0,0.37734687]
[1738670860093,0.0004714,99185.0,99184.0,0.37834687]
[1738670860333,0.0004714,99185.0,99184.0,0.37734687]
[1738670860819,0.21216284,99209.0,99191.0,0.20163]
[1738670861028,0.15,99207.0,99193.0,0.15122]
[1738670861244,0.15,99207.0,99206.0,0.1526]
[1738670861683,0.0001414,99209.0,99206.0,0.1526]
[1738670861897,0.0001414,99209.0,99207.0,0.10238506]
[1738670862112,0.0001414,99209.0,99208.0,0.00120945]
[1738670862323,0.0001414,99209.0,99208.0,0.30509451]
[1738670862539,0.0001414,99209.0,99208.0,0.30388506]
[1738670862949,0.0001414,99209.0,99208.0,0.35198506]
[1738670863575,0.0001414,99209.0,99208.0,0.50318206]
[1738670863817,0.0001414,99209.0,99208.0,0.50518206]
[1738670865306,0.0001414,99209.0,99208.0,0.90818206]
[1738670865642,0.02155197,99225.0,99208.0,0.75698506]
[1738670865847,0.0001068,99226.0,99209.0,0.30397906]
[1738670866185,0.0001068,99226.0,99211.0,0.151192]
[1738670866411,0.151173,99224.0,99212.0,0.10238506]
[1738670866929,0.01673679,99223.0,99212.0,0.10238506]
[1738670867991,0.13711688,99222.0,99208.0,0.6526]
[1738670868222,0.151192,99212.0,99208.0,0.75498506]
[1738670868431,0.21830498,99221.0,99208.0,0.70688506]
[1738670868617,0.201588,99212.0,99208.0,0.70688506]
[1738670868853,0.151195,99210.0,99208.0,0.70688506]
[1738670869262,0.01672416,99209.0,99208.0,0.70688506]
[1738670869674,0.151195,99210.0,99208.0,0.70688506]
[1738670869881,0.01672416,99209.0,99208.0,0.70688506]
[1738670870095,0.01672416,99209.0,99208.0,0.70888506]
[1738670870890,0.14891416,99213.0,99208.0,0.70688506]
[1738670871060,0.01393951,99212.0,99208.0,0.70688506]
[1738670871264,0.16513151,99212.0,99208.0,0.70688506]
[1738670871504,0.151192,99211.0,99208.0,0.70688506]
[1738670871920,0.151195,99209.0,99208.0,0.70688506]
[1738670872121,0.151195,99209.0,99208.0,0.70888506]
[1738670872326,0.1652014,99209.0,99208.0,0.6065]
[1738670872556,0.1652014,99209.0,99208.0,0.6045]
[1738670872964,0.1652014,99209.0,99208.0,0.60083106]
[1738670873460,0.1652014,99209.0,99208.0,0.60283106]
[1738670873659,0.1652014,99209.0,99208.0,0.60083106]
[1738670874060,0.1652014,99209.0,99208.0,0.60283106]
[1738670874458,0.0140064,99209.0,99208.0,0.70521612]
[1738670874659,0.15,99217.0,99208.0,0.70521612]
[1738670874898,0.151188,99214.0,99209.0,0.10238506]
[1738670875216,0.151194,99210.0,99209.0,0.10238506]
[1738670875663,0.14618959,99210.0,99209.0,0.10238506]
[1738670875853,0.01399559,99210.0,99209.0,0.10238506]
[1738670876100,0.151195,99209.0,99208.0,0.60105513]
[1738670876499,0.16518968,99209.0,99208.0,0.60105513]
[1738670877533,0.01399468,99209.0,99208.0,0.60105513]
[1738670877973,0.151193,99211.0,99208.0,0.60105513]
[1738670878111,0.01441967,99209.0,99208.0,0.60105513]
[1738670878312,0.151193,99211.0,99208.0,0.60105513]
[1738670878536,0.16561632,99209.0,99208.0,0.60105513]
[1738670878738,0.151195,99209.0,99208.0,0.60105513]
[1738670878997,0.151195,99209.0,99208.0,0.60305513]
[1738670878998,0.16561632,99209.0,99208.0,0.60305513]
[1738670879191,0.16561632,99209.0,99208.0,0.60105513]
[1738670879572,0.16561632,99209.0,99208.0,0.60305513]
[1738670879782,0.16561632,99209.0,99208.0,0.60105513]
[1738670880394,0.16561632,99209.0,99208.0,0.60305513]
[1738670880597,0.14661632,99209.0,99208.0,0.60305513]
[1738670881430,0.29661632,99209.0,99208.0,0.60305513]
[1738670882024,0.35710632,99209.0,99208.0,0.60305513]
[1738670882235,0.86365225,99209.0,99208.0,0.60305513]
[1738670882869,0.86365225,99209.0,99208.0,0.60105513]
[1738670883083,0.86365225,99209.0,99208.0,0.60305513]
[1738670883693,0.86365225,99209.0,99208.0,0.60105513]
[1738670884428,0.86365225,99209.0,99208.0,0.55915624]
[1738670884631,0.87047014,99209.0,99208.0,0.47473599]
[1738670884837,0.88094137,99209.0,99208.0,0.42117711]
[1738670885211,0.89972681,99209.0,99208.0,0.42117711]
[1738670885458,0.88925558,99209.0,99208.0,0.42117711]
[1738670885665,0.88925558,99209.0,99208.0,0.41117711]
[1738670886406,2.38925558,99209.0,99208.0,0.41117711]
[1738670887357,0.88925558,99209.0,99208.0,0.41117711]
[1738670887771,0.87047014,99209.0,99208.0,0.41117711]
[1738670887968,0.97296486,99209.0,99208.0,0.41117711]
[1738670889031,0.87047014,99209.0,99208.0,0.36617711]
[1738670889221,0.87047014,99209.0,99208.0,0.56777711]
[1738670891571,0.87047014,99209.0,99208.0,0.53408711]
[1738670892911,0.60609508,99209.0,99208.0,0.53408711]
[1738670893315,0.68958508,99209.0,99208.0,0.53408711]
[1738670894369,0.50976719,99209.0,99208.0,0.53408711]
[1738670897528,0.65976719,99209.0,99208.0,0.53408711]
[1738670899164,0.65987399,99209.0,99208.0,0.53408711]
[1738670899577,0.29672312,99209.0,99208.0,0.53408711]
[1738670902907,0.01452812,99209.0,99208.0,0.58288711]
[1738670903107,0.16572312,99209.0,99208.0,0.66288711]
[1738670903939,0.01452812,99209.0,99208.0,0.76527217]
[1738670904145,0.01452812,99209.0,99208.0,0.91646917]
[1738670904361,0.0001068,99209.0,99208.0,0.91646917]
[1738670905608,0.0001068,99209.0,99208.0,0.91846917]
[1738670905819,0.1322828,99222.0,99213.0,0.0776]
[1738670906027,0.1322828,99222.0,99214.0,0.10238506]
[1738670906225,0.01431477,99221.0,99214.0,0.10238506]
[1738670906437,0.351564,99224.0,99214.0,0.10238506]
[1738670906842,0.01431821,99223.0,99214.0,0.10238506]
[1738670906980,0.01431821,99223.0,99213.0,0.0776]
[1738670907190,0.151188,99214.0,99213.0,0.0776]
[1738670907648,0.16549809,99214.0,99213.0,0.0776]
[1738670908596,0.01431009,99214.0,99208.0,0.58288711]
[1738670908796,0.151195,99209.0,99208.0,0.58288711]
[1738670909001,0.151195,99209.0,99208.0,0.53408711]
[1738670909196,0.16549977,99209.0,99208.0,0.53408711]
[1738670909413,0.151195,99209.0,99208.0,0.53408711]
[1738670909624,0.16549977,99209.0,99208.0,0.53408711]
[1738670910427,0.16549977,99209.0,99208.0,0.53608711]
[1738670910647,0.14649977,99209.0,99208.0,0.53608711]
[1738670911011,0.14660657,99209.0,99208.0,0.53608711]
[1738670912291,0.30730895,99209.0,99208.0,0.53608711]
[1738670912496,0.20709657,99209.0,99208.0,0.53608711]
[1738670912903,0.35709657,99209.0,99208.0,0.53608711]
[1738670915665,0.33809657,99209.0,99208.0,0.53608711]
[1738670915901,0.37609657,99209.0,99208.0,0.53608711]
[1738670916368,0.37609657,99209.0,99208.0,0.53408711]
[1738670916594,0.37609657,99209.0,99208.0,0.53608711]
[1738670920815,0.40569646,99209.0,99208.0,0.53608711]
[1738670921501,0.37459657,99209.0,99208.0,0.53608711]
[1738670922445,0.37459657,99209.0,99208.0,0.53408711]
[1738670925712,0.36746449,99209.0,99208.0,0.53408711]
[1738670930567,0.36746449,99209.0,99208.0,0.65598711]
[1738670930769,0.34846449,99209.0,99208.0,0.65598711]
[1738670933164,0.31306292,99209.0,99208.0,0.65598711]
[1738670934535,0.31316972,99209.0,99208.0,0.65598711]
[1738670935692,0.29416972,99209.0,99208.0,0.65598711]
[1738670938279,0.29416972,99209.0,99208.0,0.53408711]
[1738670940944,0.27516972,99209.0,99208.0,0.53408711]
[1738670943129,0.33565972,99209.0,99208.0,0.53408711]
[1738670946126,0.31665972,99209.0,99208.0,0.53408711]
[1738670946999,0.31345902,99209.0,99208.0,0.53408711]
[1738670950012,0.43884408,99209.0,99208.0,0.53408711]
[1738670951768,0.44536074,99209.0,99208.0,0.53408711]
[1738670952457,0.31997568,99209.0,99208.0,0.53408711]
[1738670961152,0.64167568,99209.0,99208.0,0.53408711]
[1738670961359,0.63515902,99209.0,99208.0,0.53408711]
[1738670963971,0.76054408,99209.0,99208.0,0.53408711]
[1738670967471,0.76054408,99209.0,99208.0,0.45344711]
[1738670967675,0.76705168,99209.0,99208.0,0.45344711]
[1738670968695,0.76054408,99209.0,99208.0,0.45344711]
[1738670969113,0.75954408,99209.0,99208.0,0.45344711]
[1738670973474,0.7660051,99209.0,99208.0,0.45344711]
[1738670973745,0.86849982,99209.0,99208.0,0.45344711]
[1738670974906,0.7660051,99209.0,99208.0,0.45344711]
[1738670976809,0.7660051,99209.0,99208.0,0.45254306]
[1738670977438,0.7660051,99209.0,99208.0,0.45163902]
[1738670978388,0.76580351,99209.0,99208.0,0.45163902]
[1738670979028,0.76580351,99209.0,99208.0,0.44896257]
[1738670979636,0.76580351,99209.0,99208.0,0.28968257]
[1738670980065,0.76580351,99209.0,99208.0,0.47112257]
[1738670980310,0.76580351,99209.0,99208.0,0.43377257]
[1738670980722,0.76580351,99209.0,99208.0,0.39345257]
[1738670981157,0.76580351,99209.0,99208.0,0.59505257]
[1738670981363,0.76580351,99209.0,99208.0,0.54562905]
[1738670981564,0.76680351,99209.0,99208.0,0.54562905]
[1738670981791,0.76680351,99209.0,99208.0,0.50530905]
[1738670981996,0.76580351,99209.0,99208.0,0.50530905]
[1738670982404,0.76680351,99209.0,99208.0,0.50530905]
[1738670982635,0.77722693,99209.0,99208.0,0.50530905]
[1738670982972,0.77722693,99209.0,99208.0,0.47947905]
[1738670983170,0.85492693,99209.0,99208.0,0.47947905]
[1738670983508,0.94528404,99209.0,99208.0,0.44401905]
[1738670983854,2.44528404,99209.0,99208.0,0.44401905]
[1738670984854,2.51431361,99209.0,99208.0,0.44401905]
[1738670985080,2.51431361,99209.0,99208.0,0.38101905]
[1738670985514,2.35716062,99209.0,99208.0,0.38101905]
[1738670986737,2.3506996,99209.0,99208.0,0.38101905]
[1738670986940,2.26034249,99209.0,99208.0,0.38101905]
[1738670988496,2.36634249,99209.0,99208.0,0.38101905]
[1738670988705,2.26034249,99209.0,99208.0,0.38101905]
[1738670989379,2.27076762,99209.0,99208.0,0.38101905]
[1738670990144,2.27076762,99209.0,99208.0,0.58261905]
[1738670991598,2.36112473,99209.0,99208.0,0.58261905]
[1738670992029,2.36112473,99209.0,99208.0,0.58284333]
[1738670994395,2.46361945,99209.0,99208.0,0.58284333]
[1738670994599,2.37326234,99209.0,99208.0,0.58284333]
[1738670994816,0.87326234,99209.0,99208.0,0.58284333]
[1738670995294,2.27076762,99209.0,99208.0,0.58284333]
[1738671000642,0.77076762,99209.0,99208.0,0.58284333]
[1738671000876,0.64538256,99209.0,99208.0,0.66154333]
[1738671001115,0.54315902,99209.0,99208.0,0.70824333]
[1738671001358,0.33147402,99209.0,99208.0,0.70824333]
[1738671001847,0.32844526,99209.0,99208.0,0.70824333]
[1738671002093,0.00674526,99209.0,99208.0,0.70824333]
[1738671002339,0.00574526,99209.0,99208.0,0.70824333]
[1738671002581,0.0001068,99209.0,99208.0,0.71024333]
[1738671003079,0.0001068,99209.0,99208.0,0.96382539]
[1738671003321,0.0001068,99209.0,99208.0,0.81262839]
[1738671004025,0.0001068,99209.0,99208.0,0.81062839]
[1738671004215,0.00487319,99209.0,99208.0,0.81062839]
[1738671005096,0.00387319,99209.0,99208.0,0.81062839]
[1738671005296,0.151194,99210.0,99208.0,0.81062839]
[1738671005506,0.151191,99212.0,99210.0,0.046]
[1738671005685,0.151191,99212.0,99211.0,0.0824]
[1738671006807,0.132191,99212.0,99211.0,0.0824]
[1738671007426,0.132191,99212.0,99211.0,0.0844]
[1738671008820,0.132191,99212.0,99211.0,0.0824]
[1738671009023,0.132191,99212.0,99211.0,0.0834]
[1738671009419,0.132191,99212.0,99211.0,0.0824]
[1738671009626,0.132191,99212.0,99211.0,0.0834]
[1738671010682,0.113191,99212.0,99211.0,0.0834]
[1738671010885,0.201587,99213.0,99211.0,0.0834]
[1738671011090,0.151191,99212.0,99211.0,0.0834]
[1738671012826,0.15585264,99212.0,99211.0,0.0834]
[1738671013177,0.21632264,99212.0,99211.0,0.0834]
[1738671015597,0.19732264,99212.0,99211.0,0.0834]
[1738671016622,0.19742944,99212.0,99211.0,0.0834]
[1738671020659,0.06523844,99212.0,99211.0,0.0834]
[1738671021058,0.21642944,99212.0,99211.0,0.0834]
[1738671023674,0.00476844,99212.0,99211.0,0.0834]
[1738671024081,0.15595944,99212.0,99211.0,0.0834]
[1738671024278,0.00476844,99212.0,99211.0,0.0834]